bitfinex/quotes_BTCUSD_20220218
["timestamp","ask_amount","ask_price","bid_price","bid_amount"]
[1645164006773,0.432261,40657.0,40656.0,0.00124219]
[1645164006974,0.7367253,40657.0,40656.0,0.001]
[1645164007475,1.27635822,40657.0,40656.0,0.001]
[1645164007874,1.27635822,40657.0,40655.0,0.00029977]
[1645164008074,1.27635822,40657.0,40652.0,4.002e-05]
[1645164008075,0.332261,40655.0,40652.0,0.00033979]
[1645164008324,0.432261,40655.0,40654.0,0.00024219]
[1645164008518,0.7367253,40655.0,40654.0,0.00024219]
[1645164008720,0.7879253,40655.0,40652.0,0.00033979]
[1645164008921,0.01358216,40654.0,40652.0,4.002e-05]
[1645164009118,0.67339398,40653.0,40652.0,0.00033979]
[1645164009318,0.7859253,40653.0,40652.0,4.002e-05]
[1645164009518,0.7859253,40653.0,40652.0,0.00033979]
[1645164009918,0.7859253,40653.0,40652.0,4.002e-05]
[1645164010117,0.7859253,40653.0,40652.0,0.00033979]
[1645164010324,0.7859253,40653.0,40648.0,0.0011]
[1645164010325,0.06244671,40651.0,40648.0,0.0011]
[1645164010519,0.381461,40650.0,40648.0,0.0011]
[1645164010720,0.481461,40650.0,40648.0,0.0011]
[1645164010919,3.24270031,40650.0,40648.0,0.0011]
[1645164011118,3.30424131,40650.0,40648.0,0.0011]
[1645164011719,0.3044643,40649.0,40648.0,0.0011]
[1645164011920,0.3044643,40649.0,40644.0,0.0041]
[1645164011921,0.39381067,40646.0,40644.0,0.0041]
[1645164012171,0.51366447,40645.0,40644.0,0.0021]
[1645164012372,0.61366447,40645.0,40644.0,0.0021]
[1645164013571,0.62724663,40645.0,40644.0,0.0021]
[1645164013773,0.93171093,40645.0,40644.0,0.0021]
[1645164013974,1.28171093,40645.0,40644.0,0.0021]
[1645164014174,0.95,40644.0,40641.0,0.0011]
[1645164014475,0.0492,40643.0,40642.0,0.00024207]
[1645164014672,0.6859253,40643.0,40642.0,0.00024207]
[1645164014873,0.98749382,40643.0,40642.0,0.00024207]
[1645164015073,1.00107598,40643.0,40642.0,0.00024207]
[1645164015271,1.00107598,40643.0,40641.0,0.0011]
[1645164015475,0.6367253,40642.0,40641.0,0.0011]
[1645164015672,0.7859253,40642.0,40641.0,0.0011]
[1645164015921,0.1,40642.0,40641.0,0.0011]
[1645164016123,0.332261,40642.0,40641.0,0.0011]
[1645164016724,0.34584316,40642.0,40641.0,0.0021]
[1645164017622,0.44584316,40642.0,40641.0,0.0021]
[1645164018027,0.44584316,40642.0,40641.0,0.0011]
[1645164018422,0.11358216,40642.0,40641.0,0.0011]
[1645164018823,0.11558216,40642.0,40641.0,0.0011]
[1645164019024,0.01558216,40642.0,40641.0,0.25540738]
[1645164019425,0.01558216,40642.0,40641.0,0.30346242]
[1645164020068,0.01358216,40642.0,40641.0,0.30346242]
[1645164020470,0.01358216,40642.0,40641.0,0.31326242]
[1645164020671,0.01358216,40642.0,40641.0,0.31526242]
[1645164020874,0.00090809,40651.0,40642.0,0.95]
[1645164021072,0.00090809,40651.0,40648.0,0.05]
[1645164021273,0.00090809,40651.0,40650.0,0.51738715]
[1645164021474,0.00090809,40651.0,40650.0,0.56658715]
[1645164022871,0.00090809,40651.0,40650.0,0.56958715]
[1645164023071,0.00090809,40651.0,40650.0,0.98958715]
[1645164024125,0.00090809,40651.0,40650.0,0.98658715]
[1645164024724,0.00090809,40651.0,40650.0,1.03864219]
[1645164025724,0.00090809,40651.0,40650.0,1.03893666]
[1645164025928,0.41058335,40663.0,40659.0,0.21495144]
[1645164026225,0.41058335,40663.0,40650.0,0.8794091]
[1645164026226,0.10495399,40651.0,40650.0,0.8794091]
[1645164027067,0.10495399,40651.0,40650.0,1.10188833]
[1645164028068,0.10495399,40651.0,40648.0,0.00022669]
[1645164028271,0.6368439,40650.0,40649.0,0.42]
[1645164028473,0.6368439,40650.0,40648.0,0.42]
[1645164028474,0.332261,40650.0,40648.0,0.42]
[1645164028868,0.432261,40650.0,40648.0,0.42]
[1645164030070,0.427261,40650.0,40648.0,0.42]
[1645164030472,0.73262502,40650.0,40648.0,0.42]
[1645164030672,0.427261,40650.0,40648.0,0.42]
[1645164031125,0.25172803,40649.0,40648.0,0.42]
[1645164031324,0.332261,40649.0,40648.0,0.42]
[1645164031720,0.432261,40649.0,40648.0,0.42]
[1645164032722,0.434261,40649.0,40648.0,0.42]
[1645164034224,0.432261,40649.0,40648.0,0.42]
[1645164034671,0.1,40649.0,40648.0,0.42]
[1645164034871,0.10495399,40651.0,40648.0,0.42]
[1645164036072,0.10495399,40651.0,40648.0,0.72402579]
[1645164036472,0.332271,40650.0,40648.0,0.72402579]
[1645164037072,0.332271,40650.0,40648.0,0.42]
[1645164037574,0.332271,40650.0,40647.0,0.00022748]
[1645164037575,0.332271,40648.0,40647.0,0.00022748]
[1645164037774,0.83683502,40648.0,40647.0,0.00022748]
[1645164037972,0.83683502,40648.0,40647.0,0.28109526]
[1645164037973,0.481471,40648.0,40647.0,0.28109526]
[1645164038175,0.481471,40648.0,40647.0,0.28086778]
[1645164038425,0.1492,40648.0,40641.0,0.02113934]
[1645164038627,0.332271,40647.0,40644.0,0.24715548]
[1645164038829,0.432271,40647.0,40644.0,0.24715548]
[1645164039023,0.1,40647.0,40644.0,0.24715548]
[1645164039227,0.001,40648.0,40644.0,0.24715548]
[1645164039425,0.001,40648.0,40646.0,0.2974295]
[1645164040025,0.10495399,40651.0,40646.0,0.2974295]
[1645164040827,0.10495399,40651.0,40646.0,0.29765716]
[1645164041630,0.09490942,40651.0,40646.0,0.29765716]
[1645164041828,0.09490942,40651.0,40646.0,0.2974295]
[1645164042071,0.09490942,40651.0,40646.0,0.29765716]
[1645164042877,0.09490942,40651.0,40646.0,0.29965716]
[1645164043074,0.332271,40649.0,40646.0,0.00210977]
[1645164043276,0.432271,40649.0,40646.0,0.00210977]
[1645164044176,0.1,40649.0,40645.0,0.00029154]
[1645164044375,0.1,40649.0,40645.0,0.00010977]
[1645164044574,0.332271,40650.0,40645.0,0.00040131]
[1645164044777,0.332271,40648.0,40645.0,0.00110977]
[1645164044976,0.1,40650.0,40645.0,0.00140131]
[1645164044977,0.332271,40649.0,40645.0,0.00140131]
[1645164045476,0.1,40649.0,40645.0,0.00129154]
[1645164045676,0.1,40649.0,40645.0,0.00140131]
[1645164045919,0.09490942,40651.0,40645.0,0.00140131]
[1645164046223,0.332271,40650.0,40645.0,0.00040131]
[1645164046419,0.73763502,40650.0,40645.0,0.00040131]
[1645164046722,0.73763502,40650.0,40645.0,0.00052621]
[1645164046723,0.98934783,40650.0,40645.0,0.00052621]
[1645164046919,0.73963502,40650.0,40645.0,0.00052621]
[1645164047119,0.434271,40650.0,40645.0,0.00052621]
[1645164047321,0.102,40650.0,40645.0,0.00052621]
[1645164047820,0.102,40650.0,40645.0,0.00029154]
[1645164047821,0.002,40650.0,40645.0,0.00029154]
[1645164048120,0.09490942,40651.0,40645.0,0.00023467]
[1645164048321,0.09490942,40651.0,40645.0,0.00052621]
[1645164048520,0.09490942,40651.0,40645.0,0.00023467]
[1645164048819,0.09690942,40651.0,40645.0,0.00052621]
[1645164049018,0.09690942,40651.0,40644.0,0.56610034]
[1645164049223,0.09690942,40651.0,40646.0,0.00023467]
[1645164049872,0.89526339,40650.0,40646.0,0.00023467]
[1645164050075,0.332271,40648.0,40646.0,0.00023467]
[1645164050275,0.35456402,40647.0,40642.0,0.00029154]
[1645164050475,0.68683502,40647.0,40646.0,0.00022674]
[1645164050774,0.78883502,40647.0,40646.0,0.00022674]
[1645164051375,0.332271,40646.0,40642.0,0.00029154]
[1645164051573,0.39380929,40645.0,40644.0,0.00022675]
[1645164051776,0.79917331,40645.0,40644.0,0.00022675]
[1645164052573,0.79917331,40645.0,40642.0,0.00029154]
[1645164052773,0.79917331,40645.0,40642.0,0.00022675]
[1645164052973,0.80117331,40645.0,40642.0,0.00051829]
[1645164053173,0.80117331,40645.0,40642.0,0.00022675]
[1645164053423,0.80117331,40645.0,40642.0,0.00051829]
[1645164053821,0.80117331,40645.0,40642.0,0.00029154]
[1645164054022,0.80117331,40645.0,40641.0,0.02165833]
[1645164054719,0.84917331,40645.0,40641.0,0.02165833]
[1645164054920,0.5448545,40642.0,40641.0,0.01544041]
[1645164055122,2.0480545,40642.0,40641.0,0.01544041]
[1645164055321,2.586271,40641.0,40639.0,0.01399554]
[1645164055523,2.586271,40641.0,40638.0,0.0031146]
[1645164055524,1.304,40639.0,40638.0,0.0031146]
[1645164055720,2.08736999,40639.0,40638.0,0.0031146]
[1645164055921,2.08736999,40639.0,40635.0,0.00900041]
[1645164055922,1.304,40637.0,40632.0,0.02702981]
[1645164056120,1.304,40637.0,40620.0,0.30409313]
[1645164056121,0.08366023,40625.0,40620.0,0.30409313]
[1645164056420,0.08366023,40625.0,40619.0,0.24673297]
[1645164056819,0.08466023,40625.0,40623.0,0.26557805]
[1645164057081,0.08466023,40625.0,40624.0,0.00599047]
[1645164058071,0.08366023,40625.0,40624.0,0.00599047]
[1645164058272,0.08366023,40625.0,40622.0,0.00011038]
[1645164058472,0.08366023,40625.0,40622.0,0.26641467]
[1645164058673,0.08366023,40625.0,40618.0,0.05]
[1645164058875,0.63763502,40624.0,40621.0,0.01522815]
[1645164059076,0.332271,40624.0,40621.0,0.01522815]
[1645164059273,0.432271,40624.0,40621.0,0.02121862]
[1645164059873,0.40428274,40624.0,40621.0,0.02099047]
[1645164060073,0.40344513,40624.0,40621.0,0.02099047]
[1645164060279,0.85,40622.0,40621.0,9.047e-05]
[1645164060474,0.30536402,40623.0,40621.0,9.047e-05]
[1645164060475,0.0492,40623.0,40621.0,9.047e-05]
[1645164060674,0.0492,40623.0,40620.0,0.00022816]
[1645164061122,0.0492,40623.0,40614.0,0.034042]
[1645164061123,0.0093,40622.0,40614.0,0.034042]
[1645164061323,0.0093,40622.0,40614.0,0.31025719]
[1645164061522,0.0093,40622.0,40621.0,0.28431217]
[1645164061724,0.08366023,40625.0,40621.0,0.28440264]
[1645164061921,0.08366023,40625.0,40622.0,0.034034]
[1645164062120,0.08366023,40625.0,40624.0,0.25331694]
[1645164063320,0.08366023,40625.0,40624.0,0.28734494]
[1645164063921,0.08366023,40625.0,40624.0,0.25331694]
[1645164064222,0.08356976,40625.0,40624.0,0.28734494]
[1645164064876,0.08456976,40625.0,40624.0,0.28734494]
[1645164065675,0.08456976,40625.0,40624.0,0.25331694]
[1645164065974,0.08456976,40625.0,40624.0,0.25610012]
[1645164066174,0.08356976,40625.0,40624.0,0.25610012]
[1645164068425,0.08356976,40625.0,40624.0,0.00278318]
[1645164068831,0.08456976,40625.0,40624.0,0.00278318]
[1645164069624,0.41684976,40625.0,40624.0,0.00278318]
[1645164069828,0.51684976,40625.0,40624.0,0.00278318]
[1645164070226,0.18356976,40625.0,40624.0,0.00278318]
[1645164070427,0.51584976,40625.0,40624.0,0.00278318]
[1645164070633,0.8185244,40625.0,40624.0,0.00278318]
[1645164070829,0.8205244,40625.0,40623.0,0.00029026]
[1645164071030,0.33228,40624.0,40622.0,0.00302517]
[1645164071432,0.32080937,40624.0,40622.0,0.00302517]
[1645164071632,0.1,40624.0,40622.0,0.00302517]
[1645164071831,0.33228,40623.0,40622.0,0.00278318]
[1645164072274,0.33228,40623.0,40622.0,0.00307344]
[1645164072677,0.43228,40623.0,40622.0,0.26868483]
[1645164072874,0.43228,40623.0,40622.0,0.00307344]
[1645164073075,0.1,40623.0,40622.0,0.00307344]
[1645164073276,0.08356976,40625.0,40622.0,0.00307344]
[1645164074476,0.08356976,40625.0,40624.0,0.31446073]
[1645164074678,0.08356976,40625.0,40623.0,0.00029026]
[1645164074877,0.08356976,40625.0,40622.0,0.00307344]
[1645164075077,0.58356976,40625.0,40622.0,0.00307344]
[1645164075279,0.68356976,40625.0,40622.0,0.00307344]
[1645164075923,0.68356976,40625.0,40623.0,0.32633919]
[1645164076125,0.33228,40624.0,40623.0,0.32662945]
[1645164076324,0.43228,40624.0,40623.0,0.32662945]
[1645164076524,0.1,40624.0,40623.0,0.32662945]
[1645164076926,0.002,40624.0,40623.0,0.32662945]
[1645164077530,0.58229052,40625.0,40623.0,0.32662945]
[1645164080579,0.58229052,40625.0,40624.0,0.00278318]
[1645164080778,0.58229052,40625.0,40624.0,0.00307344]
[1645164080978,0.58229052,40625.0,40624.0,0.03710244]
[1645164084127,0.58229052,40625.0,40624.0,0.08710244]
[1645164084326,0.58229052,40625.0,40624.0,0.03710244]
[1645164084528,0.58229052,40625.0,40624.0,0.03710144]
[1645164085526,0.58229052,40625.0,40624.0,0.00307344]
[1645164086329,0.58229052,40625.0,40624.0,0.00278318]
[1645164086728,0.68229052,40625.0,40624.0,0.00278318]
[1645164086929,0.68229052,40625.0,40624.0,0.00478318]
[1645164087376,0.58229052,40625.0,40624.0,0.00478318]
[1645164087779,0.58229052,40625.0,40624.0,0.00507344]
[1645164088078,0.58229052,40625.0,40624.0,0.00278318]
[1645164090926,0.58229052,40625.0,40624.0,0.001]
[1645164091230,0.58229052,40625.0,40624.0,0.00129026]
[1645164092226,0.58229052,40625.0,40624.0,0.00029026]
[1645164092426,0.58229052,40625.0,40623.0,0.00278318]
[1645164092628,0.58229052,40625.0,40623.0,0.00307344]
[1645164093127,0.58229052,40625.0,40624.0,0.002]
[1645164093326,0.58229052,40625.0,40624.0,0.00229026]
[1645164093734,0.42,40637.0,40625.0,0.95]
[1645164093930,0.04164805,40640.0,40626.0,0.40742464]
[1645164094133,0.04164805,40640.0,40629.0,0.034012]
[1645164094329,0.04164805,40640.0,40630.0,0.0492]
[1645164094578,0.04164805,40640.0,40631.0,0.034007]
[1645164094778,0.04164805,40640.0,40638.0,0.25599398]
[1645164094779,0.04140616,40640.0,40638.0,0.25599398]
[1645164094981,0.03250951,40633.0,40632.0,0.061528]
[1645164095181,0.03250951,40633.0,40631.0,0.33125219]
[1645164095380,0.03250951,40633.0,40631.0,0.38045219]
[1645164095781,0.03250951,40633.0,40631.0,0.43045219]
[1645164095982,0.03250951,40633.0,40631.0,0.73755861]
[1645164096181,0.03250951,40633.0,40632.0,0.34111542]
[1645164096385,0.03250951,40633.0,40632.0,0.39031542]
[1645164096981,0.03250951,40633.0,40632.0,0.39331542]
[1645164097885,0.03250951,40633.0,40632.0,0.54600542]
[1645164098336,0.03250951,40633.0,40632.0,0.54300542]
[1645164099331,0.03250951,40633.0,40632.0,0.44031542]
[1645164099631,0.03250951,40633.0,40632.0,0.39031542]
[1645164100633,0.03250951,40633.0,40632.0,0.44309622]
[1645164100832,0.03250951,40633.0,40632.0,0.39309622]
[1645164101033,0.03250951,40633.0,40632.0,0.39609622]
[1645164101536,0.03250951,40633.0,40632.0,0.44609622]
[1645164102199,0.03250951,40633.0,40632.0,0.1389898]
[1645164102399,0.03250951,40633.0,40632.0,0.0859898]
[1645164107027,0.03250951,40633.0,40632.0,0.0879898]
[1645164108828,0.03250951,40633.0,40632.0,0.0859898]
[1645164111072,0.03250951,40633.0,40632.0,0.0879898]
[1645164112373,0.03250951,40633.0,40632.0,0.0859898]
[1645164112974,0.03250951,40633.0,40632.0,0.0879898]
[1645164114227,0.03250951,40633.0,40632.0,0.0859898]
[1645164115030,0.03250951,40633.0,40632.0,0.0879898]
[1645164115429,0.03250951,40633.0,40632.0,0.08807546]
[1645164115628,0.03250951,40633.0,40632.0,0.09005288]
[1645164115829,0.03242112,40633.0,40632.0,0.14005288]
[1645164116429,0.03242112,40633.0,40632.0,0.14013854]
[1645164116628,0.03242112,40633.0,40632.0,0.14211596]
[1645164116830,0.03242112,40633.0,40632.0,0.14011596]
[1645164117076,0.03242112,40633.0,40632.0,0.14211596]
[1645164117577,0.03242112,40633.0,40632.0,0.14220162]
[1645164117780,0.03242112,40633.0,40632.0,0.14417904]
[1645164118280,0.03242112,40633.0,40632.0,0.14217904]
[1645164118479,0.03242112,40633.0,40632.0,0.1422647]
[1645164118880,0.03242112,40633.0,40632.0,0.14424212]
[1645164119080,0.03242112,40633.0,40632.0,0.14624212]
[1645164119480,0.03242112,40633.0,40632.0,0.14632778]
[1645164119884,0.03242112,40633.0,40632.0,0.1483052]
[1645164120284,0.03242112,40633.0,40632.0,0.1463052]
[1645164120482,0.03242112,40633.0,40632.0,0.14639086]
[1645164120930,0.03242112,40633.0,40632.0,0.14836828]
[1645164121129,0.03242112,40633.0,40632.0,0.15036828]
[1645164121532,0.03242112,40633.0,40632.0,0.15045394]
[1645164121926,0.03242112,40633.0,40632.0,0.15243136]
[1645164122332,0.03242112,40633.0,40632.0,0.15043136]
[1645164122631,0.03242112,40633.0,40632.0,0.20051702]
[1645164122827,0.03242112,40633.0,40632.0,0.20249444]
[1645164123027,0.03242112,40633.0,40632.0,0.20449444]
[1645164123627,0.03242112,40633.0,40632.0,0.2045801]
[1645164123927,0.03242112,40633.0,40632.0,0.20655752]
[1645164124326,0.03242112,40633.0,40632.0,0.20455752]
[1645164124574,0.03242112,40633.0,40632.0,0.20464318]
[1645164124774,0.03242112,40633.0,40632.0,0.15464318]
[1645164124976,0.03242112,40633.0,40632.0,0.1566206]
[1645164125777,0.03242112,40633.0,40632.0,0.20670626]
[1645164125978,0.03242112,40633.0,40632.0,0.15868368]
[1645164126778,0.03242112,40633.0,40632.0,0.15876934]
[1645164126977,0.03242112,40633.0,40632.0,0.16474676]
[1645164127783,0.03242112,40633.0,40632.0,0.16483242]
[1645164127978,0.03242112,40633.0,40632.0,0.11483242]
[1645164128178,0.03242112,40633.0,40632.0,0.11680984]
[1645164128830,0.03242112,40633.0,40632.0,0.1128955]
[1645164129028,0.03242112,40633.0,40632.0,0.1148955]
[1645164129237,0.03242112,40633.0,40632.0,0.11687292]
[1645164130233,0.03242112,40633.0,40632.0,0.11685034]
[1645164130442,0.03242112,40633.0,40632.0,0.11487292]
[1645164130633,0.03242112,40633.0,40632.0,0.11456377]
[1645164131132,0.03242112,40633.0,40632.0,0.11656377]
[1645164132387,0.03242112,40633.0,40632.0,0.11456377]
[1645164132785,0.03242112,40633.0,40632.0,0.11464943]
[1645164132990,0.03242112,40633.0,40632.0,0.11456377]
[1645164133186,0.03242112,40633.0,40632.0,0.11656377]
[1645164134089,0.23312753,40631.0,40630.0,0.00023481]
[1645164134288,0.23312753,40631.0,40629.0,0.172257]
[1645164135088,0.23312753,40631.0,40629.0,0.46311775]
[1645164135927,0.23312753,40631.0,40629.0,0.175257]
[1645164136226,0.23304187,40631.0,40629.0,0.175257]
[1645164136828,0.23304187,40631.0,40630.0,0.05]
[1645164137729,0.23304187,40631.0,40629.0,0.126057]
[1645164138327,0.23304187,40631.0,40629.0,0.123057]
[1645164138728,0.23304187,40631.0,40629.0,0.43705956]
[1645164139129,0.23304187,40631.0,40629.0,0.44005956]
[1645164140374,0.23304187,40631.0,40629.0,0.43705956]
[1645164141175,0.23304187,40631.0,40629.0,0.126057]
[1645164141376,0.23304187,40631.0,40629.0,0.44005956]
[1645164142175,0.23304187,40631.0,40629.0,0.126057]
[1645164142374,0.23304187,40631.0,40629.0,0.43705956]
[1645164142576,0.23304187,40631.0,40629.0,0.123057]
[1645164142978,0.23304187,40631.0,40629.0,0.43705956]
[1645164143178,0.23304187,40631.0,40629.0,0.123057]
[1645164143627,0.23304187,40631.0,40629.0,0.43705956]
[1645164145026,0.23304187,40631.0,40629.0,0.43905956]
[1645164146328,0.23304187,40631.0,40629.0,0.43705956]
[1645164147076,0.23304187,40631.0,40629.0,0.125057]
[1645164148481,0.23304187,40631.0,40629.0,0.123057]
[1645164149078,0.23304187,40631.0,40629.0,0.125057]
[1645164150926,0.23304187,40631.0,40629.0,0.123057]
[1645164152229,0.23304187,40631.0,40629.0,0.43724171]
[1645164152927,0.23220441,40631.0,40629.0,0.43724171]
[1645164154128,0.23220441,40631.0,40630.0,0.36418471]
[1645164155679,0.23220441,40631.0,40630.0,0.05]
[1645164155982,0.23220441,40631.0,40630.0,0.36418471]
[1645164156381,0.23220441,40631.0,40630.0,0.05]
[1645164156577,0.23220441,40631.0,40630.0,0.36418471]
[1645164157178,0.23220441,40631.0,40630.0,0.05]
[1645164157582,0.23220441,40631.0,40630.0,0.46335251]
[1645164158827,0.23220441,40631.0,40630.0,0.73439438]
[1645164159224,0.23220441,40631.0,40630.0,0.73839438]
[1645164159426,0.23220441,40631.0,40630.0,0.94559299]
[1645164160325,0.23156223,40631.0,40630.0,0.94159299]
[1645164160724,0.23156223,40631.0,40630.0,1.00311399]
[1645164161125,0.23156223,40631.0,40630.0,1.00811399]
[1645164161925,0.23156223,40631.0,40630.0,0.64232382]
[1645164162378,0.23156223,40631.0,40630.0,1.0037485]
[1645164162576,0.23156223,40631.0,40630.0,1.25192382]
[1645164165276,0.23156223,40631.0,40630.0,1.25692382]
[1645164166129,0.23156223,40631.0,40630.0,1.62330141]
[1645164166426,0.23156223,40631.0,40630.0,1.61830141]
[1645164166827,0.23156223,40631.0,40630.0,1.55678041]
[1645164169983,0.03242112,40633.0,40632.0,0.061519]
[1645164170181,0.03242112,40633.0,40632.0,0.78087995]
[1645164170382,0.03242112,40633.0,40632.0,1.13087995]
[1645164170581,0.03242112,40633.0,40632.0,1.63859377]
[1645164170981,0.03242112,40633.0,40632.0,1.8893805]
[1645164171178,0.03242112,40633.0,40632.0,1.43566668]
[1645164171380,0.03242112,40633.0,40632.0,1.23566668]
[1645164172482,0.03242112,40633.0,40632.0,1.23166668]
[1645164172683,0.03242112,40633.0,40632.0,1.17014768]
[1645164172884,0.03242112,40633.0,40632.0,1.53638003]
[1645164173334,0.03208772,40633.0,40632.0,1.11458673]
[1645164175531,0.03208772,40633.0,40632.0,1.24615487]
[1645164176332,0.03208772,40633.0,40632.0,1.26154594]
[1645164177178,0.03208772,40633.0,40632.0,1.26854594]
[1645164177381,0.03208772,40633.0,40632.0,0.7708]
[1645164177681,0.03208772,40633.0,40632.0,1.08470978]
[1645164178080,0.03208772,40633.0,40632.0,1.26115674]
[1645164178280,0.03208772,40633.0,40632.0,1.42266966]
[1645164178479,0.03208772,40633.0,40632.0,1.41566966]
[1645164179083,0.03208772,40633.0,40632.0,1.42266966]
[1645164179282,0.03208772,40633.0,40632.0,0.932319]
[1645164179684,0.03208772,40633.0,40632.0,1.42266102]
[1645164180285,0.03208772,40633.0,40632.0,0.932319]
[1645164180486,0.03208772,40633.0,40632.0,0.925319]
[1645164181128,0.03208772,40633.0,40632.0,0.317719]
[1645164181528,0.03208772,40633.0,40632.0,0.217719]
[1645164181728,0.03208772,40633.0,40632.0,0.317719]
[1645164182829,0.03208772,40633.0,40632.0,0.217719]
[1645164183029,0.03208772,40633.0,40632.0,0.317719]
[1645164183230,0.03208772,40633.0,40632.0,0.324719]
[1645164184876,0.03208772,40633.0,40632.0,0.8144421]
[1645164185076,0.03208772,40633.0,40632.0,0.8004421]
[1645164185278,0.03208772,40633.0,40632.0,0.317719]
[1645164185477,0.03208772,40633.0,40632.0,0.63158424]
[1645164185677,0.03208772,40633.0,40632.0,0.53158424]
[1645164185879,0.03208772,40633.0,40632.0,0.63158424]
[1645164186379,0.03141778,40633.0,40632.0,0.57006524]
[1645164186578,0.03141778,40633.0,40632.0,0.56306524]
[1645164186778,0.03141778,40633.0,40632.0,0.2492]
[1645164187182,0.03141778,40633.0,40632.0,0.1492]
[1645164188438,0.03141778,40633.0,40632.0,0.31391656]
[1645164188636,0.03141778,40633.0,40630.0,0.58517592]
[1645164188838,0.03141778,40633.0,40632.0,0.2616042]
[1645164189034,0.03141778,40633.0,40631.0,0.31391656]
[1645164189438,0.03141778,40633.0,40632.0,0.31391656]
[1645164189635,0.03141778,40633.0,40631.0,0.31391656]
[1645164190035,0.03141778,40633.0,40632.0,0.31391656]
[1645164190235,0.03141778,40633.0,40632.0,0.36391656]
[1645164190637,0.03141778,40633.0,40632.0,0.05]
[1645164190839,0.03141778,40633.0,40631.0,0.36391656]
[1645164191040,0.03141778,40633.0,40632.0,0.31391656]
[1645164191239,0.03141778,40633.0,40632.0,0.36391656]
[1645164192483,2e-08,40637.0,40633.0,0.55]
[1645164192781,0.53676352,40641.0,40634.0,0.32313051]
[1645164192980,0.53676352,40641.0,40637.0,0.20928534]
[1645164194284,0.53676352,40641.0,40635.0,0.26160551]
[1645164194486,0.53676352,40641.0,40635.0,0.31160551]
[1645164194685,0.53412394,40641.0,40635.0,0.31160551]
[1645164196131,0.53412394,40641.0,40635.0,0.05]
[1645164196334,0.53412394,40641.0,40634.0,0.31160551]
[1645164197131,0.0002276,40640.0,40634.0,0.31160551]
[1645164198133,0.53512394,40641.0,40634.0,0.31160551]
[1645164198335,0.00022757,40639.0,40634.0,0.31160551]
[1645164198535,0.00022757,40639.0,40634.0,0.05]
[1645164198735,0.00022757,40639.0,40633.0,0.27143311]
[1645164199135,0.00122757,40639.0,40633.0,0.27143311]
[1645164199337,0.001,40639.0,40633.0,0.27120551]
[1645164199585,0.00122757,40639.0,40633.0,0.27143311]
[1645164200488,0.53412394,40641.0,40633.0,0.27120551]
[1645164200688,0.00022757,40639.0,40633.0,0.27143311]
[1645164201788,0.53512394,40641.0,40633.0,0.27120551]
[1645164201988,0.00022757,40639.0,40633.0,0.27143311]
[1645164202189,0.44390015,40641.0,40633.0,0.27143311]
[1645164202388,0.44290015,40641.0,40633.0,0.27143311]
[1645164202988,0.44290015,40641.0,40633.0,0.27120551]
[1645164203188,0.44290015,40641.0,40633.0,0.27220551]
[1645164203827,0.44223034,40641.0,40633.0,0.60784489]
[1645164204328,0.44223034,40641.0,40636.0,0.20937568]
[1645164205333,0.44223034,40641.0,40636.0,0.21037568]
[1645164205531,0.44234881,40641.0,40636.0,0.21037568]
[1645164205930,0.00011847,40641.0,40636.0,0.21037568]
[1645164206129,0.30011847,40641.0,40636.0,0.21037568]
[1645164206630,0.3,40641.0,40636.0,0.20937568]
[1645164206830,0.30024192,40641.0,40636.0,0.20937568]
[1645164207283,0.30024192,40641.0,40636.0,0.21037568]
[1645164207684,0.3,40641.0,40636.0,0.21037568]
[1645164208083,0.30024192,40641.0,40636.0,0.21037568]
[1645164208286,0.00024192,40641.0,40637.0,0.20937568]
[1645164208983,0.5260202,40642.0,40637.0,0.20937568]
[1645164209185,0.00224192,40641.0,40637.0,0.20937568]
[1645164210190,0.002,40641.0,40637.0,0.20937568]
[1645164210391,0.00224192,40641.0,40637.0,0.20937568]
[1645164210587,0.00024192,40641.0,40637.0,0.20937568]
[1645164211028,0.00024192,40641.0,40638.0,0.0024622]
[1645164211428,0.5260202,40642.0,40638.0,0.0024622]
[1645164211628,0.52591863,40642.0,40638.0,0.0024622]
[1645164211931,0.382275,40639.0,40638.0,0.0024622]
[1645164212329,0.05,40639.0,40638.0,0.0024622]
[1645164212530,0.0592,40639.0,40638.0,0.0024622]
[1645164213329,0.391475,40639.0,40638.0,0.0024622]
[1645164213531,0.0592,40639.0,40638.0,0.0024622]
[1645164213730,0.391475,40639.0,40638.0,0.0024622]
[1645164214230,0.3592,40639.0,40638.0,6.22e-05]
[1645164214432,0.691475,40639.0,40638.0,6.22e-05]
[1645164214683,0.39382922,40636.0,40634.0,0.00024196]
[1645164214982,0.26808145,40628.0,40623.0,0.00029026]
[1645164215181,0.3,40627.0,40625.0,0.00096801]
[1645164215381,0.29748272,40626.0,40625.0,0.00096801]
[1645164216181,0.29748272,40626.0,40621.0,0.00029026]
[1645164216382,0.57738145,40628.0,40623.0,0.00024198]
[1645164216581,0.27738145,40628.0,40623.0,0.00024198]
[1645164217283,0.57738145,40628.0,40620.0,0.33024432]
[1645164217484,0.27594717,40625.0,40623.0,0.0002269]
[1645164217683,0.57738145,40628.0,40623.0,0.0002269]
[1645164217884,0.27738145,40628.0,40623.0,0.0002269]
[1645164218087,0.57738145,40628.0,40623.0,0.0002269]
[1645164218533,0.57738145,40628.0,40619.0,0.00029026]
[1645164218734,0.57738145,40628.0,40623.0,0.0002269]
[1645164218933,0.27738145,40628.0,40623.0,0.0002269]
[1645164219233,0.57838145,40628.0,40623.0,0.0002269]
[1645164219435,0.27838145,40628.0,40623.0,0.00051716]
[1645164219833,0.27838145,40628.0,40623.0,0.00029026]
[1645164220033,0.27838145,40628.0,40623.0,0.0002269]
[1645164220234,0.27838145,40628.0,40623.0,0.00051716]
[1645164220432,0.27738145,40628.0,40623.0,0.0002269]
[1645164221034,0.27738145,40628.0,40623.0,0.00029026]
[1645164221236,0.27738145,40628.0,40623.0,0.0002269]
[1645164221434,0.0093,40628.0,40623.0,0.00051716]
[1645164221638,0.0093,40628.0,40623.0,0.0002269]
[1645164221836,0.001,40633.0,40623.0,0.0002269]
[1645164222082,0.001,40633.0,40623.0,0.00029026]
[1645164222283,0.001,40633.0,40622.0,0.56325501]
[1645164222485,0.001,40633.0,40626.0,0.00022789]
[1645164222486,0.19757332,40632.0,40626.0,0.00022789]
[1645164223483,0.0096,40633.0,40626.0,0.001]
[1645164223683,0.0096,40633.0,40627.0,0.00022789]
[1645164224084,0.0096,40633.0,40630.0,0.25636679]
[1645164224885,0.30005063,40637.0,40631.0,0.23536312]
[1645164225085,5.063e-05,40637.0,40631.0,0.23536312]
[1645164225285,5.063e-05,40637.0,40630.0,0.001]
[1645164225935,5.063e-05,40637.0,40631.0,0.00022781]
[1645164226134,5.063e-05,40637.0,40631.0,0.20585061]
[1645164226335,5.063e-05,40637.0,40634.0,0.33365492]
[1645164226535,5.063e-05,40637.0,40631.0,0.20585061]